bitfinex/quotes_BTCUSD_20250406
["timestamp","ask_amount","ask_price","bid_price","bid_amount"]
[1743978881621,0.42050151,78913.0,78912.0,0.0003338]
[1743978882055,0.42550151,78913.0,78912.0,0.0003338]
[1743978882463,0.42550151,78913.0,78912.0,0.0130058]
[1743978883253,0.42550151,78913.0,78912.0,0.0003338]
[1743978883452,0.76550151,78913.0,78912.0,0.0003338]
[1743978883659,0.88840448,78913.0,78912.0,0.0003338]
[1743978883853,0.88340448,78913.0,78912.0,0.0003338]
[1743978884218,0.34,78910.0,78905.0,0.253468]
[1743978884502,0.34,78908.0,78901.0,0.253479]
[1743978884708,0.13081184,78907.0,78901.0,0.253479]
[1743978885200,0.13081184,78907.0,78905.0,0.253469]
[1743978885978,0.13081184,78907.0,78905.0,0.25360479]
[1743978886990,0.00790887,78907.0,78905.0,0.25360479]
[1743978887158,0.00537084,78907.0,78906.0,0.012673]
[1743978887364,0.41246227,78911.0,78910.0,0.012672]
[1743978887580,0.41246227,78911.0,78910.0,0.266125]
[1743978888483,0.41246227,78911.0,78910.0,0.253453]
[1743978888890,0.4537085,78911.0,78910.0,0.253453]
[1743978889113,0.79907934,78911.0,78910.0,0.253453]
[1743978889552,0.75783311,78911.0,78910.0,0.253453]
[1743978890187,0.42283311,78911.0,78910.0,0.266125]
[1743978890768,0.41783311,78911.0,78910.0,0.266125]
[1743978891179,0.42283311,78911.0,78910.0,0.266125]
[1743978891922,0.41783311,78911.0,78910.0,0.266125]
[1743978892126,0.42283311,78911.0,78910.0,0.266125]
[1743978892444,0.01037084,78911.0,78910.0,0.266125]
[1743978892647,0.005,78911.0,78910.0,0.266125]
[1743978893209,0.00253803,78929.0,78928.0,0.253395]
[1743978893409,0.75246227,78929.0,78928.0,0.253395]
[1743978893553,0.75765818,78929.0,78928.0,0.253395]
[1743978893753,0.76936178,78929.0,78928.0,0.253395]
[1743978894138,0.34,78928.0,78920.0,0.253421]
[1743978894267,0.00253803,78927.0,78922.0,0.253414]
[1743978894693,0.08288589,78926.0,78923.0,0.253409]
[1743978894858,0.00253803,78925.0,78917.0,0.25343]
[1743978895055,0.13460657,78924.0,78914.0,0.253437]
[1743978895284,0.00253803,78923.0,78914.0,0.253437]
[1743978895610,0.34,78921.0,78914.0,0.253437]
[1743978895815,0.125441,78920.0,78914.0,0.253437]
[1743978895975,0.00253803,78920.0,78915.0,0.253434]
[1743978896177,0.00253803,78920.0,78919.0,0.253424]
[1743978896374,0.34,78921.0,78919.0,0.253424]
[1743978896575,0.34,78928.0,78927.0,0.253398]
[1743978896983,0.3517182,78928.0,78927.0,0.253398]
[1743978897918,0.41918047,78928.0,78927.0,0.253398]
[1743978898089,0.42418047,78928.0,78927.0,0.266067]
[1743978898559,0.41246227,78928.0,78927.0,0.266067]
[1743978899078,0.41246227,78928.0,78916.0,0.253433]
[1743978899284,0.34253803,78927.0,78910.0,0.012672]
[1743978899550,0.40746227,78926.0,78916.0,0.253433]
[1743978899730,0.00253803,78925.0,78917.0,0.253428]
[1743978900258,0.00253803,78925.0,78919.0,0.253423]
[1743978900624,0.00253803,78925.0,78921.0,0.253415]
[1743978900842,0.41919269,78926.0,78925.0,0.266075]
[1743978901267,0.41919269,78926.0,78925.0,0.253405]
[1743978901484,0.41919269,78926.0,78925.0,0.266075]
[1743978901637,0.41919269,78926.0,78925.0,0.253405]
[1743978901842,0.40746227,78926.0,78925.0,0.253405]
[1743978902060,0.41265818,78926.0,78924.0,0.253405]
[1743978902461,0.41265818,78926.0,78924.0,0.266075]
[1743978902666,0.41265818,78926.0,78924.0,0.253405]
[1743978902878,0.41265818,78926.0,78923.0,0.253411]
[1743978902879,0.00253803,78925.0,78923.0,0.253411]
[1743978903084,0.00779572,78925.0,78921.0,0.253417]
[1743978903483,0.00779572,78925.0,78906.0,0.253463]
[1743978903484,0.47069869,78925.0,78906.0,0.253463]
[1743978903829,0.34,78923.0,78900.0,0.012674]
[1743978904113,0.34,78921.0,78903.0,0.253472]
[1743978904261,0.34,78921.0,78897.0,0.0130082]
[1743978904262,0.34,78919.0,78897.0,0.0003342]
[1743978904458,0.53290327,78920.0,78897.0,0.0003342]
[1743978904459,0.34,78917.0,78897.0,0.0003342]
[1743978904670,0.34,78915.0,78897.0,0.0003342]
[1743978905041,0.40732648,78900.0,78897.0,0.0003342]
[1743978905168,0.48057697,78898.0,78897.0,0.0003342]
[1743978905382,0.49511782,78898.0,78897.0,0.0003342]
[1743978905622,0.50037551,78898.0,78897.0,0.0003342]
[1743978905957,0.48770151,78898.0,78897.0,0.0003342]
[1743978906170,0.61059919,78898.0,78897.0,0.0003342]
[1743978906509,0.46816066,78898.0,78897.0,0.0003342]
[1743978907393,0.35025769,78898.0,78897.0,0.0003342]
[1743978907749,0.34525769,78898.0,78897.0,0.0003342]
[1743978908182,0.47316066,78898.0,78897.0,0.0003342]
[1743978908809,0.48583466,78898.0,78897.0,0.0003342]
[1743978908993,0.71063234,78898.0,78897.0,0.0003342]
[1743978909480,0.72017319,78898.0,78897.0,0.0003342]
[1743978909808,0.72517319,78898.0,78894.0,0.0003346]
[1743978910083,0.34,78879.0,78856.0,0.266307]
[1743978910296,0.34,78877.0,78869.0,0.00047062]
[1743978910485,0.125441,78876.0,78869.0,0.00047062]
[1743978910691,0.34,78874.0,78869.0,0.00047062]
[1743978910898,0.34,78872.0,78869.0,0.00047062]
[1743978911131,0.00253803,78871.0,78869.0,0.00047062]
[1743978911332,0.00779572,78871.0,78869.0,0.00047062]
[1743978911945,0.74315348,78870.0,78869.0,0.00047062]
[1743978912327,0.40841117,78870.0,78869.0,0.01314962]
[1743978913079,0.00525769,78870.0,78869.0,0.01314962]
[1743978913280,0.40315348,78877.0,78869.0,0.01314962]
[1743978913498,0.40315348,78877.0,78871.0,0.266256]
[1743978913499,0.00236651,78876.0,78871.0,0.266256]
[1743978913711,0.0076242,78876.0,78875.0,0.012678]
[1743978913909,0.00525769,78876.0,78875.0,0.012678]
[1743978914349,0.00525769,78876.0,78873.0,0.25357]
[1743978914554,0.0076242,78876.0,78873.0,0.25357]
[1743978914777,0.00236651,78876.0,78873.0,0.266248]
[1743978914985,0.00236651,78876.0,78869.0,0.26673262]
[1743978915143,0.00236651,78876.0,78870.0,0.266258]
[1743978915344,0.40315348,78877.0,78876.0,0.26624]
[1743978915951,1.09572,78899.0,78897.0,0.012674]
[1743978915952,0.40315348,78898.0,78897.0,0.012674]
[1743978916163,0.34,78897.0,78896.0,0.266172]
[1743978916357,0.34,78897.0,78894.0,0.253501]
[1743978916358,0.40841117,78898.0,78894.0,0.266176]
[1743978916568,0.40315348,78898.0,78894.0,0.266176]
[1743978916812,0.00525769,78897.0,78896.0,0.266172]
[1743978917017,0.00525769,78897.0,78896.0,0.38907497]
[1743978917363,0.1586947,78904.0,78903.0,0.266148]
[1743978917568,0.11062682,78913.0,78912.0,0.266118]
[1743978917770,0.11062682,78913.0,78912.0,0.38902097]
[1743978918739,0.11062682,78913.0,78912.0,0.40356182]
[1743978918939,0.11062682,78913.0,78912.0,0.59984182]
[1743978919142,8.2e-07,78913.0,78912.0,0.93984182]
[1743978919343,0.00236651,78941.0,78928.0,0.266064]
[1743978919480,0.00213567,78929.0,78919.0,0.012671]
[1743978919688,0.00213567,78929.0,78926.0,0.266071]
[1743978919900,0.00213567,78929.0,78928.0,0.012669]
[1743978921351,0.00213567,78929.0,78928.0,0.266064]
[1743978921754,0.00213567,78929.0,78917.0,0.380146]
[1743978921755,0.34,78928.0,78904.0,0.012673]
[1743978921906,0.52819212,78929.0,78926.0,0.01267]
[1743978921907,0.40315348,78927.0,78926.0,0.01267]
[1743978922115,0.00500549,78927.0,78926.0,0.15011382]
[1743978922544,0.00213567,78929.0,78928.0,0.012669]
[1743978922749,0.00213567,78929.0,78928.0,0.15011282]
[1743978922953,0.00213567,78929.0,78928.0,0.13557197]
[1743978923424,0.00713567,78929.0,78928.0,0.20114634]
[1743978923666,0.00713567,78929.0,78928.0,0.19861282]
[1743978923859,0.00213567,78929.0,78928.0,0.19861282]
[1743978924135,0.00713567,78929.0,78928.0,0.20114595]
[1743978924357,0.0001674,78943.0,78942.0,0.266017]
[1743978924596,0.0001674,78943.0,78942.0,0.40346082]
[1743978924841,0.00061994,78943.0,78942.0,0.40346082]
[1743978925822,0.00061994,78943.0,78942.0,0.12290297]
[1743978926023,0.00061994,78943.0,78942.0,0.13556997]
[1743978926909,0.00461994,78943.0,78942.0,0.13556997]
[1743978927425,0.00461994,78943.0,78925.0,0.05546921]
[1743978927426,0.00061994,78943.0,78925.0,0.05546921]
[1743978927646,0.00061994,78943.0,78942.0,0.266017]
[1743978927647,0.00661994,78943.0,78942.0,0.266017]
[1743978928099,0.00661994,78943.0,78942.0,0.38891997]
[1743978928329,0.00061994,78943.0,78942.0,0.38891997]
[1743978929675,0.00361994,78943.0,78942.0,0.38891997]
[1743978930139,0.00061994,78943.0,78942.0,0.38891997]
[1743978930376,0.00061994,78943.0,78942.0,0.40346082]
[1743978930599,0.00361994,78943.0,78942.0,0.40346082]
[1743978930821,0.00361994,78943.0,78942.0,0.12290297]
[1743978931046,0.00361994,78943.0,78942.0,0.38891997]
[1743978931500,0.00361994,78943.0,78936.0,0.266037]
[1743978931761,0.00361994,78943.0,78935.0,0.012668]
[1743978931762,0.00361994,78943.0,78935.0,0.266039]
[1743978931952,0.00361994,78943.0,78937.0,0.253366]
[1743978932174,0.00361994,78943.0,78938.0,0.266028]
[1743978932386,0.00361994,78943.0,78939.0,0.012668]
[1743978932762,0.00361994,78943.0,78932.0,0.253382]
[1743978932763,0.40377342,78943.0,78932.0,0.253382]
[1743978932964,0.00236651,78942.0,78935.0,0.266038]
[1743978933170,0.02325948,78942.0,78935.0,0.012668]
[1743978933362,0.02325948,78942.0,78934.0,0.012668]
[1743978934339,0.02089297,78942.0,78938.0,0.266028]
[1743978934544,0.02089297,78942.0,78938.0,0.012668]
[1743978934744,0.02589297,78942.0,78936.0,0.012668]
[1743978935079,0.00236651,78941.0,78934.0,0.266041]
[1743978935279,0.00236651,78941.0,78936.0,0.253369]
[1743978935646,0.00236651,78941.0,78936.0,0.266037]
[1743978935846,0.00236651,78941.0,78931.0,0.266052]
[1743978936052,0.00236651,78941.0,78934.0,0.266041]
[1743978936252,0.40377342,78943.0,78929.0,0.26606]
[1743978936253,0.00736651,78942.0,78929.0,0.26606]
[1743978936455,0.40315348,78941.0,78935.0,0.012668]
[1743978936716,0.02325948,78940.0,78935.0,0.012668]
[1743978937121,0.02325948,78940.0,78933.0,0.253377]
[1743978937671,0.34,78939.0,78917.0,0.012671]
[1743978937843,0.34,78937.0,78924.0,0.253408]
[1743978937992,0.00236651,78936.0,78923.0,0.01267]
[1743978938194,0.02312668,78936.0,78923.0,0.01267]
[1743978938735,0.02312668,78936.0,78921.0,0.01267]
[1743978938955,0.02312668,78936.0,78912.0,0.253446]
[1743978939154,0.02312668,78936.0,78916.0,0.012671]
[1743978939359,0.02312668,78936.0,78917.0,0.012671]
[1743978939684,0.012669,78932.0,78893.0,0.012675]
[1743978939835,0.0494,78933.0,78893.0,0.012675]
[1743978939836,0.01267,78926.0,78893.0,0.012675]
[1743978940195,0.01267,78926.0,78876.0,0.24556]
[1743978940196,0.34,78916.0,78885.0,0.266209]
[1743978940379,0.012673,78905.0,78881.0,0.002]
[1743978940591,0.058373,78903.0,78881.0,0.002]
[1743978940881,0.00236651,78902.0,78881.0,0.002]
[1743978941080,0.02076017,78901.0,78881.0,0.002]
[1743978941350,0.34236651,78900.0,78881.0,0.002]
[1743978941553,0.34,78898.0,78884.0,0.00030307]
[1743978941728,0.34,78896.0,78884.0,0.00030307]
[1743978941928,0.34,78894.0,78884.0,0.00030307]
[1743978942229,0.00236651,78893.0,78884.0,0.00030307]
[1743978942384,0.02312668,78893.0,78884.0,0.00030307]
[1743978944310,0.02812668,78893.0,78884.0,0.00030307]
[1743978944629,0.02312668,78893.0,78884.0,0.00030307]
[1743978945243,0.34,78891.0,78884.0,0.00030307]
[1743978945403,0.34,78889.0,78884.0,0.00030307]
[1743978945720,0.34,78887.0,78884.0,0.00030307]
[1743978945926,0.12526948,78886.0,78884.0,0.00030307]
[1743978946325,0.02076017,78885.0,78884.0,0.00030307]
[1743978946531,1.09521262,78885.0,78884.0,0.00030307]
[1743978946741,1.08253662,78885.0,78884.0,0.00030307]
[1743978947388,0.352677,78882.0,78881.0,0.002]
[1743978947540,0.82582297,78882.0,78881.0,0.00213582]
[1743978947741,0.60626,78870.0,78865.0,0.0003348]
[1743978947942,0.81768177,78870.0,78865.0,0.0003348]
[1743978948153,0.62081385,78866.0,78865.0,0.0003348]
[1743978948391,0.62081385,78866.0,78841.0,0.0001674]
[1743978948392,0.012681,78852.0,78841.0,0.0001674]
[1743978948524,0.34,78842.0,78841.0,0.0001674]
[1743978948727,0.65858297,78842.0,78841.0,0.0001674]
[1743978949141,0.74472878,78842.0,78841.0,0.00061852]
[1743978949356,0.69048959,78842.0,78841.0,0.00061852]
[1743978950397,0.69548959,78842.0,78841.0,0.00061852]
[1743978950813,0.03690662,78842.0,78841.0,0.00061852]
[1743978951012,0.03690662,78842.0,78839.0,0.00253675]
[1743978951218,0.03690662,78842.0,78841.0,0.12543972]
[1743978951420,0.01661911,78842.0,78841.0,0.13558597]
[1743978951591,0.01661911,78842.0,78841.0,0.18238597]
[1743978951834,0.01661911,78842.0,78841.0,0.19692682]
[1743978952050,0.35833908,78890.0,78842.0,0.35454085]
[1743978952051,0.40285041,78880.0,78842.0,0.35454085]
[1743978952251,0.40285041,78880.0,78872.0,0.266251]
[1743978952372,0.02028751,78879.0,78873.0,0.012678]
[1743978952568,0.40285041,78880.0,78873.0,0.012678]
[1743978952812,0.34,78879.0,78873.0,0.012678]
[1743978952995,0.40285041,78880.0,78872.0,0.266251]
[1743978953205,0.02028751,78878.0,78869.0,0.012679]
[1743978953410,0.40785041,78880.0,78869.0,0.012679]
[1743978953411,0.40785041,78880.0,78879.0,0.012677]
[1743978953608,0.40830284,78880.0,78878.0,0.012677]
[1743978953913,0.40330284,78880.0,78877.0,0.012677]
[1743978954110,0.005,78879.0,78877.0,0.012677]
[1743978954316,0.005,78879.0,78877.0,0.266235]
[1743978954513,0.005,78879.0,78878.0,0.012677]
[1743978955285,0.40330284,78880.0,78879.0,0.266229]
[1743978955551,0.40830284,78880.0,78879.0,0.266229]
[1743978956044,0.40330284,78880.0,78879.0,0.266229]
[1743978956747,0.40330284,78880.0,78878.0,0.001]
[1743978956906,0.40330284,78880.0,78876.0,0.26624]
[1743978957289,0.40830284,78880.0,78879.0,0.001]
[1743978957927,0.40830284,78880.0,78879.0,0.013677]
[1743978957928,0.41990936,78880.0,78879.0,0.013677]
[1743978958539,0.41490936,78880.0,78879.0,0.012677]
[1743978958740,0.41990936,78880.0,78879.0,0.012677]
[1743978959066,0.40830284,78880.0,78879.0,0.012677]
[1743978959256,0.40330284,78880.0,78879.0,0.012677]
[1743978959562,0.40830284,78880.0,78879.0,0.013677]
[1743978960375,0.00545243,78880.0,78879.0,0.13657997]
[1743978960529,0.00545243,78880.0,78879.0,0.13911538]
[1743978960736,0.00545243,78880.0,78879.0,0.15112082]
[1743978960957,0.00545243,78880.0,78879.0,0.13657997]
[1743978961160,0.00545243,78880.0,78879.0,0.001]
[1743978961360,0.00545243,78880.0,78879.0,0.013677]
[1743978961561,0.00045243,78880.0,78877.0,0.253559]
[1743978961721,0.00045243,78880.0,78870.0,0.012679]
[1743978961925,0.00045243,78880.0,78875.0,0.266243]
[1743978962175,0.00045243,78880.0,78879.0,0.266229]
[1743978962336,0.00045243,78880.0,78879.0,0.38913197]
[1743978962572,0.00645243,78880.0,78879.0,0.38913197]
[1743978962973,0.00045243,78880.0,78879.0,0.38913197]
[1743978963412,0.00645243,78880.0,78879.0,0.38913197]
[1743978963906,0.00645243,78880.0,78879.0,0.266229]
[1743978964846,0.00045243,78880.0,78879.0,0.38913197]
[1743978965054,0.00045243,78880.0,78879.0,0.40367282]
[1743978965263,0.00645243,78880.0,78879.0,0.40367282]
[1743978965439,0.00645243,78880.0,78877.0,0.266233]
[1743978965580,0.00645243,78880.0,78879.0,0.266229]
[1743978965915,0.00045243,78880.0,78879.0,0.266229]
[1743978966097,0.00545243,78880.0,78879.0,0.266229]
[1743978966297,0.00545243,78880.0,78871.0,0.012678]
[1743978966497,0.0116741,78879.0,78878.0,0.012677]
[1743978966722,0.03195879,78879.0,78878.0,0.012677]
[1743978967280,0.0116741,78879.0,78878.0,0.012677]
[1743978967946,0.0116741,78879.0,78878.0,0.13557997]
[1743978968118,0.0116741,78879.0,78878.0,0.15265627]
[1743978968721,0.00045243,78880.0,78878.0,0.15265627]
[1743978968722,0.00045243,78880.0,78879.0,0.28076985]
[1743978968907,0.00045243,78880.0,78879.0,0.49847282]
[1743978969103,0.40285041,78914.0,78898.0,0.28070585]
[1743978969355,0.00213567,78899.0,78898.0,0.40360882]
[1743978969718,0.01169569,78913.0,78912.0,0.266118]
[1743978969925,6.9e-07,78913.0,78912.0,0.40356182]
[1743978970539,0.002,78929.0,78921.0,0.266087]
[1743978970896,0.002,78929.0,78921.0,0.38898997]
[1743978971874,0.002,78929.0,78921.0,0.74353082]
[1743978972114,0.002,78929.0,78921.0,0.79273082]
[1743978972335,0.006335,78922.0,78921.0,0.83133622]
[1743978972562,0.006335,78922.0,78921.0,0.41286687]
[1743978972786,0.006335,78922.0,78921.0,0.13557297]
[1743978973011,0.006335,78922.0,78910.0,0.19532]
[1743978973012,0.000335,78922.0,78917.0,0.012671]
[1743978973205,0.000335,78922.0,78918.0,0.012671]
[1743978973451,0.000335,78922.0,78915.0,0.012671]
[1743978973663,0.000335,78922.0,78919.0,0.253424]
[1743978973866,0.000335,78922.0,78921.0,0.01267]
[1743978974008,0.000335,78922.0,78921.0,0.13557297]
[1743978974206,0.000335,78922.0,78921.0,0.15611382]
[1743978974413,0.000335,78922.0,78921.0,0.12890297]
[1743978974649,0.001335,78922.0,78921.0,0.14157297]
[1743978974954,0.000335,78922.0,78909.0,0.266127]
[1743978975128,0.006335,78922.0,78912.0,0.012672]
[1743978975329,0.006335,78922.0,78907.0,0.012673]
[1743978975538,0.02274817,78921.0,78918.0,0.253426]
[1743978975839,0.000335,78922.0,78917.0,0.266096]
[1743978976041,0.006335,78922.0,78918.0,0.266098]
[1743978976274,0.006335,78922.0,78914.0,0.012672]
[1743978976477,0.006335,78922.0,78921.0,0.266087]
[1743978977053,0.007335,78922.0,78921.0,0.266087]
[1743978977431,0.006335,78922.0,78921.0,0.266087]
[1743978978007,0.009335,78922.0,78916.0,0.253434]
[1743978978313,0.00236651,78921.0,78904.0,0.253471]
[1743978978451,0.40285041,78920.0,78904.0,0.266144]
[1743978978648,0.00236651,78919.0,78913.0,0.012672]
[1743978978852,0.00236651,78919.0,78918.0,0.012671]
[1743978979065,0.40285041,78920.0,78919.0,0.012671]
[1743978979353,0.40285041,78920.0,78908.0,0.253459]
[1743978979556,0.40285041,78920.0,78886.0,0.51205891]
[1743978979557,0.012673,78905.0,78895.0,0.075]
[1743978979761,0.34,78896.0,78852.0,0.0491]
[1743978979962,0.34,78889.0,78864.0,0.01268]
[1743978980075,0.00236651,78888.0,78865.0,0.00253567]
[1743978980281,0.00236651,78888.0,78867.0,0.00045243]
[1743978980685,0.352676,78886.0,78867.0,0.00045243]
[1743978980896,0.34,78879.0,78867.0,0.00045243]
[1743978981100,0.34,78877.0,78867.0,0.00045243]
[1743978981328,0.34,78875.0,78867.0,0.00045243]
[1743978981500,0.00236651,78874.0,78867.0,0.00045243]
[1743978981695,0.19516,78873.0,78867.0,0.00045243]
[1743978981898,0.34236651,78872.0,78867.0,0.00045243]
[1743978982111,0.34,78872.0,78867.0,0.00045243]
[1743978982350,0.00236651,78871.0,78867.0,0.00045243]
[1743978982552,0.012679,78868.0,78867.0,0.00045243]
[1743978982692,0.00236651,78868.0,78867.0,0.00045243]
[1743978982957,0.71885748,78868.0,78867.0,0.00045243]
[1743978983153,1.19187402,78868.0,78867.0,0.00045243]
[1743978983410,1.19187402,78868.0,78851.0,0.002]
[1743978983411,0.34,78852.0,78851.0,0.002]
[1743978983565,1.06042095,78852.0,78851.0,0.002]
[1743978983770,0.59751798,78852.0,78851.0,0.002]
[1743978983975,0.61770615,78852.0,78851.0,0.002]
[1743978985027,0.02018817,78852.0,78851.0,0.002]
[1743978985233,0.02518817,78852.0,78851.0,0.002]
[1743978985428,0.005,78852.0,78851.0,0.002]
[1743978985605,0.02518817,78852.0,78851.0,0.002]
[1743978986570,0.03018817,78852.0,78851.0,0.002]
[1743978987275,0.01,78852.0,78851.0,0.002]
[1743978987619,0.03018817,78852.0,78851.0,0.002]
[1743978987820,0.01,78852.0,78851.0,0.002]
[1743978988024,0.03018817,78852.0,78851.0,0.002]
[1743978988222,0.01,78852.0,78851.0,0.002]
[1743978988425,0.03018817,78852.0,78851.0,0.002]
[1743978989320,0.43258615,78852.0,78851.0,0.002]
[1743978989529,0.77258615,78852.0,78851.0,0.002]
[1743978998347,0.97274774,78852.0,78851.0,0.002]
[1743978998552,0.253678,78840.0,78837.0,0.0001675]
[1743978998775,0.593684,78838.0,78837.0,0.0001675]
[1743978998934,0.72927097,78838.0,78837.0,0.0001675]
[1743978999130,0.72927097,78838.0,78819.0,0.0001672]
[1743978999131,0.606422,78822.0,78819.0,0.0001672]
[1743978999461,2.54391425,78822.0,78819.0,0.0001672]
[1743978999828,2.56398118,78822.0,78821.0,0.00213567]
[1743979000349,2.58352203,78822.0,78821.0,0.00213567]
[1743979000492,2.17500788,78822.0,78821.0,0.00213567]
[1743979000669,2.17500788,78822.0,78821.0,0.00313567]
[1743979000670,2.18462882,78822.0,78821.0,0.00313567]
[1743979000881,2.20231482,78822.0,78821.0,0.00313567]
[1743979001505,2.22685567,78822.0,78821.0,0.00313567]
[1743979001658,0.02722785,78820.0,78819.0,0.0001672]
[1743979001887,0.61539501,78820.0,78819.0,0.00030244]
[1743979002089,0.6130285,78820.0,78819.0,0.00030244]
[1743979002315,0.63309543,78820.0,78819.0,0.00030244]
[1743979002714,0.68169543,78820.0,78819.0,0.00030244]
[1743979002913,0.72719543,78820.0,78819.0,0.00030244]
[1743979003176,0.606459,78811.0,78810.0,0.0001673]
[1743979003378,0.85192157,78811.0,78810.0,0.00030315]
[1743979003587,0.01269,78799.0,78787.0,0.0001673]
[1743979003767,0.35269,78797.0,78787.0,0.0001673]
[1743979003945,0.34,78795.0,78787.0,0.0001673]
[1743979004146,0.34,78795.0,78788.0,0.012692]
[1743979004346,0.59480013,78798.0,78795.0,0.266514]
[1743979004522,0.59480013,78798.0,78795.0,0.012691]
[1743979004723,0.59480013,78798.0,78797.0,0.253816]
[1743979004908,0.59480013,78798.0,78794.0,0.0001673]
[1743979005110,0.00236651,78797.0,78794.0,0.0001673]
[1743979006367,0.005,78795.0,78794.0,0.0001673]
[1743979007015,0.005,78795.0,78794.0,0.0128583]
[1743979007216,0.005,78795.0,78794.0,0.1875995]
[1743979007553,0.005,78795.0,78794.0,0.0128583]
[1743979007749,0.005,78797.0,78796.0,0.01269]
[1743979007971,0.004,78795.0,78794.0,0.0128583]
[1743979008230,0.005,78797.0,78794.0,0.0128583]
[1743979008231,0.005,78797.0,78796.0,0.01269]
[1743979008461,0.005,78797.0,78796.0,0.13813074]
[1743979008669,0.39976013,78819.0,78818.0,0.253749]
[1743979008877,0.39976013,78840.0,78818.0,0.266436]
[1743979009051,0.00013565,78819.0,78818.0,0.266436]
[1743979009820,0.00513565,78819.0,78818.0,0.43813897]
[1743979010025,0.00513565,78819.0,78818.0,0.38933897]
[1743979010748,0.01013565,78819.0,78818.0,0.38933897]
[1743979010941,0.00513565,78819.0,78818.0,0.266436]
[1743979011364,0.01313565,78819.0,78818.0,0.266436]
[1743979011931,0.00813565,78819.0,78818.0,0.266436]
[1743979012137,0.00813565,78819.0,78818.0,0.38933897]
[1743979012354,0.01313565,78819.0,78818.0,0.38933897]
[1743979013005,0.39976013,78840.0,78839.0,0.012684]
[1743979013180,0.39976013,78862.0,78847.0,0.012682]
[1743979013408,0.42178185,78861.0,78854.0,0.012681]
[1743979013649,0.41941534,78861.0,78854.0,0.012681]
[1743979013828,0.41941534,78861.0,78855.0,0.012681]
[1743979014026,0.41941534,78861.0,78860.0,0.266293]
[1743979014227,0.41941534,78861.0,78860.0,0.253613]
[1743979014430,0.41941534,78861.0,78842.0,0.253671]
[1743979014649,0.00236651,78860.0,78848.0,0.012682]
[1743979014817,0.00236651,78860.0,78849.0,0.253648]
[1743979015021,0.00236651,78860.0,78853.0,0.012681]
[1743979015219,0.01965521,78859.0,78857.0,0.253623]
[1743979015576,0.01965521,78859.0,78857.0,0.266304]
[1743979015782,0.00236651,78858.0,78852.0,0.253639]
[1743979015941,0.00236651,78859.0,78855.0,0.25363]
[1743979016266,0.00236651,78859.0,78854.0,0.012681]
[1743979016267,0.01965521,78858.0,78853.0,0.266316]
[1743979016609,0.00236651,78857.0,78849.0,0.253648]
[1743979016811,0.00236651,78857.0,78851.0,0.266324]
[1743979017080,0.01965521,78856.0,78839.0,0.25368]
[1743979017252,0.01965521,78856.0,78764.0,0.4770438]
[1743979017253,0.12526948,78855.0,78832.0,0.012685]
[1743979017423,0.12526948,78855.0,78833.0,0.266385]
[1743979017424,0.34,78854.0,78833.0,0.266385]
[1743979017632,0.02244595,78853.0,78836.0,0.25369]
[1743979017837,0.02244595,78853.0,78837.0,0.012684]
[1743979018039,0.02244595,78853.0,78840.0,0.266354]
[1743979018239,0.02244595,78853.0,78835.0,0.012684]
[1743979018445,0.02244595,78853.0,78835.0,0.13558697]
[1743979018652,0.34,78851.0,78836.0,0.012684]
[1743979018869,0.00236651,78850.0,78837.0,0.266371]
[1743979019050,0.00236651,78850.0,78836.0,0.012684]
[1743979019249,0.02007944,78849.0,78836.0,0.012684]
[1743979019494,0.00236651,78848.0,78836.0,0.012684]
[1743979019694,0.00236651,78848.0,78835.0,0.001]
[1743979020011,0.02007944,78847.0,78835.0,0.001]
[1743979020185,0.00236651,78846.0,78835.0,0.001]
[1743979020352,0.43600473,78845.0,78835.0,0.001]
[1743979020557,0.012683,78843.0,78835.0,0.001]
[1743979020755,0.34,78836.0,78835.0,0.001]
[1743979021011,0.67778241,78836.0,78835.0,0.001]
[1743979021212,0.67778241,78836.0,78810.0,0.012688]
[1743979021412,0.34,78834.0,78810.0,0.012688]
[1743979021618,0.34,78832.0,78808.0,0.253778]
[1743979021815,0.00236651,78831.0,78808.0,0.38936997]
[1743979022020,0.00236651,78831.0,78812.0,0.266454]
[1743979022021,0.02007944,78830.0,78812.0,0.266454]
[1743979022246,0.01402182,78829.0,78813.0,0.012688]
[1743979022674,0.01402182,78829.0,78808.0,0.00013565]
[1743979022675,0.48298241,78828.0,78808.0,0.00013565]
[1743979022858,0.606418,78824.0,78808.0,0.00013565]
[1743979023199,0.62169853,78827.0,78808.0,0.00113565]
[1743979023200,0.34,78810.0,78808.0,0.00113565]
[1743979023400,0.73990905,78809.0,78808.0,0.00113565]
[1743979023560,0.74919785,78809.0,78808.0,0.00113565]
[1743979024744,0.62629488,78809.0,78808.0,0.00113565]
[1743979024952,0.62629488,78809.0,78808.0,0.00013565]
[1743979025908,0.62929488,78809.0,78808.0,0.00013565]
[1743979026063,0.96929488,78809.0,78808.0,0.00013565]
[1743979026266,0.96263957,78809.0,78808.0,0.00013565]
[1743979026486,0.76783957,78809.0,78808.0,0.00013565]
[1743979026676,0.42783957,78809.0,78808.0,0.01282465]
[1743979026876,0.42283957,78809.0,78808.0,0.01282465]
[1743979027173,0.41983957,78809.0,78808.0,0.01282465]
[1743979027484,0.41983957,78809.0,78808.0,0.00013565]
[1743979028351,0.42483957,78809.0,78808.0,0.00013565]
[1743979028612,0.42483957,78809.0,78808.0,0.26660565]
[1743979028830,0.41983957,78809.0,78808.0,0.26660565]
[1743979028995,0.42283957,78809.0,78808.0,0.26660565]
[1743979029187,0.42783957,78809.0,78808.0,0.26660565]
[1743979029383,0.42483957,78809.0,78808.0,0.38950862]
[1743979029606,0.41983957,78809.0,78808.0,0.38950862]
[1743979029757,0.42283957,78809.0,78808.0,0.38950862]
[1743979029954,0.42783957,78809.0,78808.0,0.00013565]
[1743979030156,0.43083957,78809.0,78808.0,0.00013565]
[1743979031586,0.43083957,78809.0,78808.0,0.01282465]
[1743979031787,0.41076013,78809.0,78808.0,0.01282465]
[1743979032107,0.43042996,78809.0,78808.0,0.01282465]
[1743979033088,0.43042996,78809.0,78808.0,0.00013565]
[1743979033293,0.43042996,78809.0,78808.0,0.01282465]
[1743979034131,0.43042996,78809.0,78808.0,0.00013565]
[1743979034333,0.47347296,78809.0,78808.0,0.00013565]
[1743979034574,0.4935728,78809.0,78808.0,0.00013565]
[1743979035590,0.50023495,78809.0,78808.0,0.00013565]